fUST/lending_fUST_20250203
["ID","MTS","AMOUNT","RATE_DAILY","PERIOD"]
[351362104,1738541446627,-502.7555163,0.00017236,2]
[351362105,1738541446637,-237.36104642,0.00017245,2]
[351362106,1738541446647,-500.0,0.0001726,2]
[351362107,1738541446657,-151.0,0.0001726,2]
[351362108,1738541446667,-412.262111,0.0001726,2]
[351362109,1738541446677,-412.262111,0.0001726,2]
[351362110,1738541446688,-490.907,0.0001726,2]
[351362111,1738541446698,-151.0,0.0001726,2]
[351362112,1738541446709,-151.0,0.0001726,2]
[351362113,1738541446721,-489.40593,0.0001726,2]
[351362114,1738541446731,-489.40593,0.0001726,2]
[351362115,1738541446742,-500.0,0.0001726,2]
[351362116,1738541446751,-1132.459605,0.0001726,2]
[351362117,1738541446762,-151.0,0.0001726,2]
[351362118,1738541446771,-398.867883,0.0001726,2]
[351362119,1738541446781,-398.867883,0.0001726,2]
[351362120,1738541446791,-296.08,0.0001726,2]
[351362121,1738541446801,-626.49,0.0001726,2]
[351362122,1738541446811,-500.0,0.0001726,2]
[351362123,1738541446821,-500.0,0.0001726,2]
[351362124,1738541446831,-151.0,0.0001726,2]
[351362125,1738541446840,-151.0,0.0001726,2]
[351362126,1738541446851,-151.0,0.0001726,2]
[351362127,1738541446861,-412.255806,0.0001726,2]
[351362128,1738541446871,-412.255806,0.0001726,2]
[351362129,1738541446881,-2757.74,0.0001726,2]
[351362130,1738541446892,-500.0,0.0001726,2]
[351362131,1738541446902,-520.46,0.0001726,2]
[351362132,1738541446913,-500.0,0.0001726,2]
[351362133,1738541446923,-151.0,0.0001726,2]
[351362134,1738541446932,-500.0,0.0001726,2]
[351362135,1738541446943,-1240.72,0.0001726,2]
[351362136,1738541446965,-500.0,0.0001726,2]
[351362137,1738541446981,-6364.08,0.0001726,2]
[351362138,1738541446992,-1844.94,0.0001726,2]
[351362139,1738541447003,-500.0,0.0001726,2]
[351362140,1738541447014,-500.0,0.0001726,2]
[351362141,1738541447024,-674.75,0.0001726,2]
[351362142,1738541447034,-500.0,0.0001726,2]
[351362143,1738541447045,-151.0,0.0001726,2]
[351362144,1738541447054,-500.0,0.0001726,2]
[351362145,1738541447064,-1500.58,0.0001726,2]
[351362146,1738541447074,-4818.98808671,0.0001726,2]
[351362147,1738541447095,-992.32191329,0.0001726,2]
[351362148,1738541447105,-2427.25,0.0001726,2]
[351362149,1738541447116,-151.0,0.0001726,2]
[351362150,1738541447127,-190.657338,0.0001726,2]
[351362151,1738541447138,-190.657338,0.0001726,2]
[351362152,1738541447148,-870.97,0.0001726,2]
[351362153,1738541447159,-151.0,0.0001726,2]
[351362154,1738541447168,-354.670361,0.0001726,2]
[351362155,1738541447313,-500.0,0.0001726,2]
[351362156,1738541447324,-354.670361,0.0001726,2]
[351362157,1738541447336,-617.81,0.0001726,2]
[351362158,1738541447346,-1392.23,0.0001726,2]
[351362159,1738541447356,-651.76,0.0001726,2]
[351362160,1738541447367,-6758.16,0.0001726,2]
[351362161,1738541447378,-764.75,0.0001726,2]
[351362162,1738541447388,-500.0,0.0001726,2]
[351362164,1738541447398,-1590.76,0.0001726,2]
[351362165,1738541447409,-1624.4,0.0001726,2]
[351362166,1738541447419,-835.77,0.0001726,2]
[351362167,1738541447429,-4356.73,0.0001726,2]
[351362168,1738541447439,-323.795456,0.0001726,2]
[351362169,1738541447449,-151.0,0.0001726,2]
[351362170,1738541447460,-430.0,0.0001726,2]
[351362171,1738541447473,-672.23,0.0001726,2]
[351362172,1738541447483,-323.795456,0.0001726,2]
[351362173,1738541447492,-583.4,0.0001726,2]
[351362174,1738541447503,-500.0,0.0001726,2]
[351362175,1738541447512,-197.3,0.0001726,2]
[351362176,1738541447522,-142.97812495,0.0001726,2]
[351362177,1738541447610,-500.0,0.00016438,2]
[351362178,1738541447620,-142.81311,0.00016575,2]
[351362179,1738541447657,-500.0,0.00016438,2]
[351362180,1738541447666,-357.18689,0.00016575,2]
[351362181,1738541447676,-500.0,0.00016575,2]
[351362182,1738541447685,-202.01311,0.00016712,2]
[351362265,1738541491355,160.0,0.00020313,120]
[351362865,1738541791320,160.0,0.00019855,120]
[351363005,1738541851861,160.0,0.00020467,120]
[351363246,1738541976743,237.950324,0.00013973,2]
[351364439,1738542525723,238.4508888,0.0001,7]
[351364668,1738542636086,-334.6794241,0.00015403,2]
[351364669,1738542636097,-500.0,0.00015753,2]
[351364671,1738542636107,-1568.3455759,0.00016,2]
[351364672,1738542636145,-969.64859614,0.00016,2]
[351364673,1738542636155,-1078.55140386,0.00016337,5]
[351364674,1738542636260,-1336.53056753,0.00016337,5]
[351364713,1738542637986,-1693.79670395,0.00016337,5]
[351364715,1738542637996,-169.37812797,0.00016338,2]
[351364717,1738542638008,-474.51623871,0.00016338,2]
[351364719,1738542638018,-300.0,0.00016399,2]
[351364721,1738542638028,-14852.21075133,0.000164,2]
[351364723,1738542638037,-198.22351885,0.00016437,2]
[351364725,1738542638047,-500.0,0.00016438,2]
[351364727,1738542638056,-320.09970471,0.00016438,2]
[351364729,1738542638066,-226.39418114,0.00016438,2]
[351364731,1738542638075,-511.36437695,0.00016438,2]
[351364733,1738542638085,-500.0,0.00016438,2]
[351364734,1738542638095,-500.0,0.00016438,2]
[351364736,1738542638105,-600.44539603,0.00016438,2]
[351364738,1738542638114,-500.0,0.00016438,2]
[351364739,1738542638124,-500.0,0.00016438,2]
[351364742,1738542638138,-500.0,0.00016438,2]
[351364743,1738542638148,-500.0,0.00016438,2]
[351364745,1738542638159,-507.44792533,0.00016438,2]
[351364746,1738542638170,-500.0,0.00016438,2]
[351364747,1738542638180,-500.0,0.00016438,2]
[351364748,1738542638190,-500.0,0.00016438,2]
[351364749,1738542638205,-500.0,0.00016438,2]
[351364750,1738542638215,-505.39196174,0.00016438,2]
[351364751,1738542638225,-504.20449591,0.00016438,2]
[351364752,1738542638235,-500.0,0.00016438,2]
[351364753,1738542638245,-500.0,0.00016438,2]
[351364754,1738542638258,-500.0,0.00016438,2]
[351364755,1738542638269,-500.0,0.00016438,2]
[351364756,1738542638280,-511.54762105,0.00016438,2]
[351364757,1738542638290,-648.48394815,0.00016438,2]
[351364758,1738542638301,-500.0,0.00016438,2]
[351364759,1738542638311,-500.0,0.00016438,2]
[351364760,1738542638321,-500.0,0.00016438,2]
[351364761,1738542638332,-500.0,0.00016438,2]
[351364762,1738542638342,-500.0,0.00016438,2]
[351364763,1738542638352,-500.0,0.00016438,2]
[351364764,1738542638363,-501.07047784,0.00016438,2]
[351364765,1738542638373,-500.0,0.00016438,2]
[351364766,1738542638384,-500.0,0.00016438,2]
[351364767,1738542638394,-500.0,0.00016438,2]
[351364768,1738542638404,-513.34333386,0.00016438,2]
[351364769,1738542638415,-500.0,0.00016438,2]
[351364770,1738542638424,-500.0,0.00016438,2]
[351364771,1738542638434,-500.0,0.00016438,2]
[351364772,1738542638445,-489.28306794,0.00016438,2]
[351364773,1738542638455,-500.0,0.00016438,2]
[351364774,1738542638465,-500.0,0.00016438,2]
[351364775,1738542638475,-500.0,0.00016438,2]
[351364776,1738542638485,-500.0,0.00016438,2]
[351364777,1738542638494,-500.0,0.00016438,2]
[351364778,1738542638506,-500.77340113,0.00016438,2]
[351364779,1738542638518,-500.0,0.00016438,2]
[351364780,1738542638528,-500.0,0.00016438,2]
[351364781,1738542638538,-526.25470159,0.00016438,2]
[351364782,1738542638548,-500.0,0.00016438,2]
[351364783,1738542638558,-200.0,0.00016438,2]
[351364784,1738542638568,-198.22703248,0.00016438,2]
[351364785,1738542638578,-527.87001627,0.00016438,2]
[351364786,1738542638588,-500.0,0.00016438,2]
[351364787,1738542638598,-500.0,0.00016438,2]
[351364788,1738542638607,-500.0,0.00016438,2]
[351364789,1738542638617,-500.0,0.00016438,2]
[351364790,1738542638627,-500.0,0.00016438,2]
[351364791,1738542638636,-500.0,0.00016438,2]
[351364792,1738542638646,-500.0,0.00016438,2]
[351364793,1738542638655,-500.0,0.00016438,2]
[351364794,1738542638665,-500.0,0.00016438,2]
[351364795,1738542638675,-500.0,0.00016438,2]
[351364796,1738542638687,-299.06352534,0.00016438,2]
[351364797,1738542638697,-500.0,0.00016438,2]
[351364799,1738542638710,-500.0,0.00016438,2]
[351364800,1738542638719,-500.0,0.00016438,2]
[351364801,1738542638729,-500.0,0.00016438,2]
[351364802,1738542638739,-500.0,0.00016438,2]
[351364803,1738542638749,-500.0,0.00016438,2]
[351364804,1738542638770,-500.0,0.00016438,2]
[351364805,1738542638782,-500.0,0.00016438,2]
[351364806,1738542638793,-500.0,0.00016438,2]
[351364807,1738542638803,-500.0,0.00016438,2]
[351364808,1738542638814,-500.0,0.00016438,2]
[351364809,1738542638825,-500.0,0.00016438,2]
[351364810,1738542638836,-500.0,0.00016438,2]
[351364811,1738542638846,-630.59278394,0.00016438,2]
[351364812,1738542638856,-500.0,0.00016438,2]
[351364813,1738542638866,-500.0,0.00016438,2]
[351364814,1738542638877,-500.0,0.00016438,2]
[351364815,1738542638887,-500.0,0.00016438,2]
[351364816,1738542638897,-500.0,0.00016438,2]
[351364817,1738542638907,-500.0,0.00016438,2]
[351364818,1738542638916,-500.0,0.00016438,2]
[351364819,1738542638926,-500.0,0.00016438,2]
[351364820,1738542638935,-500.0,0.00016438,2]
[351364822,1738542638944,-500.0,0.00016438,2]
[351364823,1738542638954,-500.0,0.00016438,2]
[351364824,1738542638963,-500.0,0.00016438,2]
[351364825,1738542638974,-500.0,0.00016438,2]
[351364826,1738542638985,-500.0,0.00016438,2]
[351364828,1738542638996,-500.0,0.00016438,2]
[351364829,1738542639010,-446.8552989,0.00016438,2]
[351364830,1738542639020,-500.0,0.00016438,2]
[351364831,1738542639030,-500.0,0.00016438,2]
[351364832,1738542639039,-500.0,0.00016438,2]
[351364833,1738542639049,-554.71977024,0.00016438,2]
[351364834,1738542639059,-500.0,0.00016438,2]
[351364835,1738542639069,-500.0,0.00016438,2]
[351364836,1738542639079,-500.0,0.00016438,2]
[351364837,1738542639089,-500.0,0.00016438,2]
[351364838,1738542639098,-500.0,0.00016438,2]
[351364839,1738542639108,-500.0,0.00016438,2]
[351364840,1738542639117,-500.0,0.00016438,2]
[351364841,1738542639127,-500.0,0.00016438,2]
[351364842,1738542639137,-553.11,0.00016438,2]
[351364843,1738542639147,-499.50866725,0.00016438,2]
[351364844,1738542639157,-500.0,0.00016438,2]
[351364845,1738542639167,-500.0,0.00016438,2]
[351364846,1738542639177,-500.0,0.00016438,2]
[351364847,1738542639187,-500.0,0.00016438,2]
[351364848,1738542639197,-500.0,0.00016438,2]
[351364849,1738542639207,-505.57781031,0.00016438,2]
[351364850,1738542639216,-500.0,0.00016438,2]
[351364851,1738542639226,-500.0,0.00016438,2]
[351364852,1738542639236,-500.0,0.00016438,2]
[351364853,1738542639246,-500.0,0.00016438,2]
[351364854,1738542639259,-500.0,0.00016438,2]
[351364855,1738542639269,-500.0,0.00016438,2]
[351364856,1738542639279,-500.0,0.00016438,2]
[351364857,1738542639289,-500.0,0.00016438,2]
[351364858,1738542639299,-500.0,0.00016438,2]
[351364859,1738542639310,-500.0,0.00016438,2]
[351364860,1738542639320,-500.0,0.00016438,2]
[351364861,1738542639330,-500.0,0.00016438,2]
[351364862,1738542639340,-500.0,0.00016438,2]
[351364863,1738542639350,-500.0,0.00016438,2]
[351364864,1738542639359,-500.0,0.00016438,2]
[351364865,1738542639369,-500.0,0.00016438,2]
[351364866,1738542639379,-500.0,0.00016438,2]
[351364867,1738542639389,-265.80306026,0.00016438,2]
[351364868,1738542639399,-521.19884162,0.00016438,2]
[351364869,1738542639408,-500.0,0.00016438,2]
[351364870,1738542639417,-506.48538674,0.00016438,2]
[351364872,1738542639427,-500.0,0.00016438,2]
[351364873,1738542639437,-542.72487996,0.00016438,2]
[351364874,1738542639447,-523.66342881,0.00016438,2]
[351364875,1738542639456,-500.0,0.00016438,2]
[351364876,1738542639466,-506.58633253,0.00016438,2]
[351364877,1738542639475,-500.0,0.00016438,2]
[351364878,1738542639486,-500.0,0.00016438,2]
[351364879,1738542639496,-500.0,0.00016438,2]
[351364880,1738542639509,-500.0,0.00016438,2]
[351364881,1738542639519,-500.0,0.00016438,2]
[351364882,1738542639529,-500.0,0.00016438,2]
[351364883,1738542639539,-500.0,0.00016438,2]
[351364884,1738542639549,-500.0,0.00016438,2]
[351364885,1738542639558,-500.0,0.00016438,2]
[351364886,1738542639569,-500.0,0.00016438,2]
[351364887,1738542639579,-500.0,0.00016438,2]
[351364888,1738542639590,-578.43059988,0.00016438,2]
[351364890,1738542639599,-500.0,0.00016438,2]
[351364891,1738542639609,-500.0,0.00016438,2]
[351364892,1738542639618,-500.0,0.00016438,2]
[351364894,1738542639628,-500.0,0.00016438,2]
[351364896,1738542639638,-500.0,0.00016438,2]
[351364897,1738542639648,-514.6803724,0.00016438,2]
[351364898,1738542639658,-500.0,0.00016438,2]
[351364899,1738542639669,-500.0,0.00016438,2]
[351364900,1738542639680,-500.0,0.00016438,2]
[351364901,1738542639691,-500.0,0.00016438,2]
[351364902,1738542639704,-500.0,0.00016438,2]
[351364903,1738542639715,-500.0,0.00016438,2]
[351364905,1738542639725,-500.0,0.00016438,2]
[351364907,1738542639736,-500.0,0.00016438,2]
[351364908,1738542639747,-500.0,0.00016438,2]
[351364910,1738542639763,-500.0,0.00016438,2]
[351364911,1738542639774,-500.0,0.00016438,2]
[351364912,1738542639785,-500.0,0.00016438,2]
[351364913,1738542639795,-645.76944227,0.00016438,2]
[351364914,1738542639805,-500.0,0.00016438,2]
[351364915,1738542639815,-500.0,0.00016438,2]
[351364916,1738542639946,-500.0,0.00016438,2]
[351364917,1738542639956,-500.0,0.00016438,2]
[351364918,1738542639967,-500.0,0.00016438,2]
[351364919,1738542639977,-500.0,0.00016438,2]
[351364920,1738542639987,-500.0,0.00016438,2]
[351364921,1738542639997,-300.0,0.00016438,2]
[351364922,1738542640012,-500.0,0.00016438,2]
[351364923,1738542640022,-965.78,0.00016438,2]
[351364924,1738542640032,-500.0,0.00016438,2]
[351364925,1738542640043,-500.0,0.00016438,2]
[351364926,1738542640053,-526.21,0.00016438,2]
[351364927,1738542640063,-500.0,0.00016438,2]
[351364928,1738542640073,-500.0,0.00016438,2]
[351364929,1738542640083,-1267.19,0.00016438,2]
[351364930,1738542640093,-500.0,0.00016438,2]
[351364931,1738542640102,-532.74088484,0.00016438,2]
[351364932,1738542640111,-642.34,0.00016438,2]
[351364933,1738542640121,-500.0,0.00016438,2]
[351364934,1738542640131,-500.0,0.00016438,2]
[351364935,1738542640140,-500.0,0.00016438,2]
[351364936,1738542640150,-5694.04,0.00016438,2]
[351364937,1738542640159,-500.0,0.00016438,2]
[351364938,1738542640169,-500.0,0.00016438,2]
[351364939,1738542640179,-500.0,0.00016438,2]
[351364940,1738542640190,-254.75306574,0.00016438,2]
[351364941,1738542640200,-500.0,0.00016438,2]
[351364942,1738542640210,-500.0,0.00016438,2]
[351364943,1738542640220,-500.0,0.00016438,2]
[351364944,1738542640229,-500.0,0.00016438,2]
[351364945,1738542640239,-500.0,0.00016438,2]
[351364946,1738542640249,-5101.44,0.00016438,2]
[351364947,1738542640263,-2095.2,0.00016438,2]
[351364948,1738542640273,-500.0,0.00016438,2]
[351364949,1738542640283,-500.0,0.00016438,2]
[351364950,1738542640293,-500.0,0.00016438,2]
[351364951,1738542640303,-499.12859565,0.00016438,2]
[351364952,1738542640313,-500.0,0.00016438,2]
[351364953,1738542640323,-500.0,0.00016438,2]
[351364954,1738542640332,-668.49,0.00016438,2]
[351364955,1738542640342,-500.0,0.00016438,2]
[351364957,1738542640352,-792.79,0.00016438,2]
[351364959,1738542640362,-609.55,0.00016438,2]
[351364961,1738542640372,-500.0,0.00016438,2]
[351364962,1738542640381,-500.0,0.00016438,2]
[351364963,1738542640391,-503.45019622,0.00016438,2]
[351364964,1738542640401,-500.0,0.00016438,2]
[351364965,1738542640411,-500.0,0.00016438,2]
[351364966,1738542640421,-555.34,0.00016438,2]
[351364967,1738542640430,-500.0,0.00016438,2]
[351364968,1738542640439,-500.0,0.00016438,2]
[351364969,1738542640449,-500.0,0.00016438,2]
[351364970,1738542640459,-500.0,0.00016438,2]
[351364971,1738542640468,-500.0,0.00016438,2]
[351364972,1738542640479,-500.0,0.00016438,2]
[351364973,1738542640489,-2246.28,0.00016438,2]
[351364974,1738542640499,-500.0,0.00016438,2]
[351364975,1738542640512,-500.0,0.00016438,2]
[351364976,1738542640522,-500.0,0.00016438,2]
[351364977,1738542640531,-54.83928751,0.00016438,2]
[351364978,1738542640549,-445.16071249,0.00016438,2]
[351364979,1738542640559,-500.0,0.00016438,2]
[351364980,1738542640569,-500.0,0.00016438,2]
[351364981,1738542640578,-500.0,0.00016438,2]
[351364982,1738542640588,-500.0,0.00016438,2]
[351364983,1738542640598,-1599.98,0.00016438,2]
[351364984,1738542640607,-352.19974793,0.00016438,2]
[351364985,1738542640620,-147.80025207,0.00016438,2]
[351364986,1738542640629,-963.21691695,0.00016438,2]
[351364987,1738542640647,-2238.42308305,0.00016438,2]
[351364988,1738542640658,-500.0,0.00016438,2]
[351364989,1738542640669,-1540.36,0.00016438,2]
[351364990,1738542640679,-500.0,0.00016438,2]
[351364991,1738542640691,-500.0,0.00016438,2]
[351364992,1738542640703,-500.0,0.00016438,2]
[351364993,1738542640712,-500.0,0.00016438,2]
[351364994,1738542640722,-500.0,0.00016438,2]
[351364995,1738542640732,-712.36560967,0.00016438,2]
[351364996,1738542640744,-462.38439033,0.00016438,2]
[351364997,1738542640754,-500.0,0.00016438,2]
[351364998,1738542640767,-624.59,0.00016438,2]
[351364999,1738542640777,-500.0,0.00016438,2]
[351365000,1738542640791,-598.24306704,0.00016438,2]
[351365001,1738542640801,-1063.78985317,0.00016438,2]
[351365002,1738542640813,-410.28014683,0.00016438,2]
[351365003,1738542640823,-505.08567262,0.00016438,2]
[351365004,1738542640833,-547.73,0.00016438,2]
[351365005,1738542640843,-500.0,0.00016438,2]
[351365006,1738542640852,-1440.69704709,0.00016438,2]
[351365007,1738542640863,-3553.29718945,0.00016438,2]
[351365008,1738542640876,-314.59576346,0.00016438,2]
[351365009,1738542640886,-500.0,0.00016438,2]
[351365010,1738542640895,-500.0,0.00016438,2]
[351365011,1738542640905,-500.0,0.00016438,2]
[351365012,1738542640914,-500.0,0.00016438,2]
[351365013,1738542640923,-1392.74,0.00016438,2]
[351365014,1738542640933,-500.0,0.00016438,2]
[351365015,1738542640942,-2402.34,0.00016438,2]
[351365016,1738542640952,-9608.28139588,0.000165,2]
[351365017,1738542641114,-3756.38777999,0.000165,2]
[351365018,1738542641123,-474.51623868,0.00016561,2]
[351365019,1738542641133,-500.0,0.00016573,2]
[351365020,1738542641142,-409.63575887,0.00016574,2]
[351365021,1738542641152,-152.76,0.00016575,2]
[351365022,1738542641162,-500.0,0.00016575,2]
[351365023,1738542641171,-642.51422427,0.00016575,2]
[351365024,1738542641180,-500.0,0.00016575,2]
[351365025,1738542641189,-500.0,0.00016575,2]
[351365026,1738542641199,-500.0,0.00016575,2]
[351365027,1738542641209,-500.0,0.00016575,2]
[351365028,1738542641218,-500.0,0.00016575,2]
[351365029,1738542641227,-500.0,0.00016575,2]
[351365030,1738542641237,-500.0,0.00016575,2]
[351365031,1738542641246,-425.17297494,0.00016575,2]
[351365032,1738542641257,-500.0,0.00016575,2]
[351365033,1738542641267,-500.0,0.00016575,2]
[351365034,1738542641277,-500.0,0.00016575,2]
[351365035,1738542641288,-500.0,0.00016575,2]
[351365036,1738542641297,-500.0,0.00016575,2]
[351365037,1738542641307,-224.31515373,0.00016575,2]
[351365038,1738542641316,-500.0,0.00016575,2]
[351365039,1738542641326,-500.0,0.00016575,2]
[351365040,1738542641335,-500.0,0.00016575,2]
[351365041,1738542641345,-500.0,0.00016575,2]
[351365042,1738542641354,-500.0,0.00016575,2]
[351365043,1738542641364,-553.11,0.00016575,2]
[351365044,1738542641373,-500.0,0.00016575,2]
[351365045,1738542641383,-500.0,0.00016575,2]
[351365047,1738542641394,-500.0,0.00016575,2]
[351365048,1738542641404,-500.0,0.00016575,2]
[351365050,1738542641415,-500.0,0.00016575,2]
[351365051,1738542641425,-500.0,0.00016575,2]
[351365052,1738542641435,-500.0,0.00016575,2]
[351365054,1738542641444,-500.0,0.00016575,2]
[351365056,1738542641454,-500.0,0.00016575,2]
[351365058,1738542641464,-500.0,0.00016575,2]
[351365060,1738542641475,-500.0,0.00016575,2]
[351365061,1738542641485,-500.0,0.00016575,2]
[351365063,1738542641496,-500.0,0.00016575,2]
[351365064,1738542641509,-500.0,0.00016575,2]
[351365066,1738542641519,-500.0,0.00016575,2]
[351365068,1738542641528,-500.0,0.00016575,2]
[351365069,1738542641538,-278.12323383,0.00016575,2]
[351365071,1738542641547,-500.0,0.00016575,2]
[351365073,1738542641557,-500.0,0.00016575,2]
[351365075,1738542641567,-468.69778965,0.00016575,2]
[351365076,1738542641576,-500.0,0.00016575,2]
[351365078,1738542641586,-500.0,0.00016575,2]
[351365079,1738542641595,-500.0,0.00016575,2]
[351365080,1738542641604,-500.0,0.00016575,2]
[351365082,1738542641614,-965.78,0.00016575,2]
[351365083,1738542641623,-500.0,0.00016575,2]
[351365084,1738542641633,-526.21,0.00016575,2]
[351365085,1738542641643,-500.0,0.00016575,2]
[351365086,1738542641652,-500.0,0.00016575,2]
[351365087,1738542641662,-1267.19,0.00016575,2]
[351365088,1738542641671,-642.34,0.00016575,2]
[351365089,1738542641681,-500.0,0.00016575,2]
[351365090,1738542641694,-500.0,0.00016575,2]
[351365091,1738542641704,-5694.04,0.00016575,2]
[351365092,1738542641713,-500.0,0.00016575,2]
[351365093,1738542641722,-5101.44,0.00016575,2]
[351365094,1738542641732,-2095.2,0.00016575,2]
[351365095,1738542641742,-500.0,0.00016575,2]
[351365096,1738542641751,-668.49,0.00016575,2]
[351365097,1738542641765,-792.79,0.00016575,2]
[351365098,1738542641774,-609.55,0.00016575,2]
[351365099,1738542641785,-500.0,0.00016575,2]
[351365100,1738542641795,-500.0,0.00016575,2]
[351365101,1738542641804,-500.0,0.00016575,2]
[351365102,1738542641813,-555.34,0.00016575,2]
[351365104,1738542641822,-500.0,0.00016575,2]
[351365105,1738542641831,-500.0,0.00016575,2]
[351365106,1738542641841,-500.0,0.00016575,2]
[351365107,1738542641850,-500.0,0.00016575,2]
[351365108,1738542641859,-500.0,0.00016575,2]
[351365110,1738542641868,-2246.28,0.00016575,2]
[351365111,1738542641878,-500.0,0.00016575,2]
[351365112,1738542641887,-500.0,0.00016575,2]
[351365113,1738542641897,-500.0,0.00016575,2]
[351365114,1738542641906,-1599.98,0.00016575,2]
[351365115,1738542641916,-500.0,0.00016575,2]
[351365116,1738542641926,-3201.64,0.00016575,2]
[351365117,1738542641936,-500.0,0.00016575,2]
[351365118,1738542641946,-1540.36,0.00016575,2]
[351365119,1738542641956,-500.0,0.00016575,2]
[351365120,1738542641966,-500.0,0.00016575,2]
[351365121,1738542641977,-500.0,0.00016575,2]
[351365122,1738542641988,-500.0,0.00016575,2]
[351365123,1738542641998,-500.0,0.00016575,2]
[351365124,1738542642016,-1174.75,0.00016575,2]
[351365125,1738542642027,-624.59,0.00016575,2]
[351365126,1738542642036,-1474.07,0.00016575,2]
[351365127,1738542642045,-547.73,0.00016575,2]
[351365128,1738542642053,-5308.59,0.00016575,2]
[351365129,1738542642062,-500.0,0.00016575,2]
[351365130,1738542642073,-500.0,0.00016575,2]
[351365131,1738542642083,-517.52887381,0.00016575,2]
[351365132,1738542642094,-1392.74,0.00016575,2]
[351365133,1738542642104,-500.0,0.00016575,2]
[351365134,1738542642115,-2402.34,0.00016575,2]
[351365135,1738542642125,-156.244,0.0001665,2]
[351365136,1738542642135,-500.0,0.00016711,2]
[351365137,1738542642144,-508.29172279,0.00016711,2]
[351365138,1738542642154,-500.0,0.00016712,2]
[351365139,1738542642163,-500.0,0.00016712,2]
[351365140,1738542642173,-500.0,0.00016712,2]
[351365141,1738542642183,-500.0,0.00016712,2]
[351365142,1738542642192,-500.0,0.00016712,2]
[351365143,1738542642202,-434.20202343,0.00016712,2]
[351365229,1738542646119,-500.0,0.00016438,2]
[351365231,1738542646129,-453.8,0.00016575,2]
[351365236,1738542646177,-46.2,0.00016575,2]
[351365238,1738542646187,-18.89937154,0.00016712,2]
[351365240,1738542646201,-500.0,0.00016712,2]
[351365242,1738542646213,-500.0,0.00016712,2]
[351365244,1738542646225,-403.77366476,0.00016712,2]
[351365247,1738542646237,-96.22633524,0.00016712,2]
[351365249,1738542646247,-500.0,0.00016712,2]
[351365251,1738542646256,-500.0,0.00016712,2]
[351365254,1738542646272,-500.0,0.00016712,2]
[351365256,1738542646282,-154.49366476,0.00016712,2]
[351365669,1738542849084,226.052807,0.00013973,2]
[351365674,1738542960878,-630.0,0.00018,18]
[351365700,1738543084825,274.0,0.00020453,120]
[351365764,1738543508700,-1750.0,0.00020502,120]
[351365782,1738543754718,185.984394,0.0001764,15]
[351365786,1738543813075,232.437298,0.00013973,2]
[351365936,1738543837375,-772.43341686,0.00015249,2]
[351365937,1738543837385,-12.77648809,0.00015403,2]
[351365938,1738543837397,-998.69290709,0.00015403,2]
[351365939,1738543837409,-3451.60738661,0.00015403,2]
[351365940,1738543837421,-524.3826156,0.00015403,2]
[351365941,1738543837436,-1749.5626116,0.00015403,2]